fUST/lending_fUST_20241106
["ID","MTS","AMOUNT","RATE_DAILY","PERIOD"]
[341362971,1730837145169,-545.835651,0.00035954,2]
[341362972,1730837145193,-545.835651,0.00036639,2]
[341362973,1730837145217,-150.0,0.00037,2]
[341362974,1730837145239,-150.0,0.0004,2]
[341362975,1730837145268,-400.0,0.00040994,5]
[341362976,1730837145290,-1000.0,0.00040995,2]
[341362977,1730837145311,-170.80529994,0.00041073,2]
[341362978,1730837145334,-300.04442664,0.00041073,5]
[341362979,1730837227137,-520.83333333,0.00023873,2]
[341362980,1730837227160,-377.52576025,0.00025,90]
[341362981,1730837229786,-4181.31423975,0.00025,90]
[341362982,1730837229808,-140.88342794,0.0003562,2]
[341362983,1730837230087,-19.64752106,0.0003562,2]
[341362984,1730837230108,-150.0,0.00037,2]
[341362985,1730837230130,-160.61,0.0003819,10]
[341362986,1730837230150,-658.06830729,0.000382,109]
[341362987,1730837236096,-205.54871801,0.000382,109]
[341362988,1730837238117,-2144.59960211,0.000382,109]
[341362989,1730837240127,-5249.49099734,0.000382,109]
[341362990,1730837252098,-3359.77796765,0.000382,109]
[341362991,1730837280283,520.83333333,0.00020816,2]
[341363010,1730837346095,-165.0,0.00033,2]
[341363015,1730837407400,465.1440423,0.00031998,2]
[341363088,1730837436626,-518.34670063,0.00034023,2]
[341363090,1730837436635,-150.0,0.00034023,2]
[341363092,1730837436645,-179.31767277,0.00038199,15]
[341363094,1730837436655,-460.8572972,0.00038199,15]
[341363096,1730837436665,-500.0,0.00038199,15]
[341363098,1730837436675,-450.40259599,0.00038199,15]
[341363100,1730837436684,-13086.12226558,0.000382,109]
[341363102,1730837436693,-2417.69913261,0.000382,109]
[341363110,1730837436775,-22.83874645,0.000382,109]
[341363113,1730837436788,-22263.06997892,0.000382,109]
[341363115,1730837436799,-24703.60785798,0.000382,109]
[341363117,1730837436809,-24703.60785798,0.000382,109]
[341363119,1730837436818,-5000.0,0.000399,30]
[341363121,1730837436828,-1463.03792547,0.00040868,26]
[341363123,1730837436837,-1000.0,0.00040995,2]
[341363124,1730837436847,-846.74,0.00041085,3]
[341363126,1730837436857,-803.06,0.00041085,10]
[341363127,1730837436867,-999.0,0.00041094,120]
[341363128,1730837436878,-511.33869735,0.00041095,14]
[341363129,1730837436889,-500.0,0.00041095,10]
[341363130,1730837436902,-500.0,0.00041095,14]
[341363131,1730837436913,-500.0,0.00041095,14]
[341363132,1730837436923,-250.00000939,0.00041095,14]
[341363133,1730837436933,-500.0,0.00041095,14]
[341363134,1730837436942,-500.0,0.00041095,14]
[341363135,1730837436952,-504.40459246,0.00041095,14]
[341363136,1730837436961,-516.99004459,0.00041095,14]
[341363137,1730837436972,-500.0,0.00041095,14]
[341363138,1730837436981,-504.3921938,0.00041095,14]
[341363140,1730837436991,-501.41793541,0.00041095,14]
[341363142,1730837437003,-500.0,0.00041095,14]
[341363144,1730837437012,-500.0,0.00041095,14]
[341363146,1730837437021,-500.0,0.00041095,14]
[341363147,1730837437030,-500.0,0.00041095,14]
[341363149,1730837437041,-500.0,0.00041095,14]
[341363151,1730837437051,-500.0,0.00041095,14]
[341363153,1730837437060,-455.01368085,0.00041095,14]
[341363155,1730837437069,-500.0,0.00041095,14]
[341363156,1730837437079,-504.45205067,0.00041095,14]
[341363157,1730837437088,-500.0,0.00041095,14]
[341363158,1730837437098,-500.0,0.00041095,14]
[341363159,1730837437107,-528.27441336,0.00041095,14]
[341363160,1730837437116,-500.0,0.00041095,14]
[341363161,1730837437127,-500.0,0.00041095,14]
[341363162,1730837437136,-506.84582918,0.00041095,14]
[341363163,1730837437146,-500.0,0.00041095,14]
[341363164,1730837437155,-500.0,0.00041095,14]
[341363165,1730837437164,-500.0,0.00041095,14]
[341363166,1730837437174,-506.25192027,0.00041095,14]
[341363167,1730837437183,-500.0,0.00041095,14]
[341363168,1730837437193,-507.69302859,0.00041095,14]
[341363169,1730837437205,-519.88526703,0.00041095,14]
[341363170,1730837437214,-500.0,0.00041095,14]
[341363171,1730837437223,-500.0,0.00041095,14]
[341363172,1730837437232,-500.0,0.00041095,14]
[341363173,1730837437243,-500.0,0.00041095,14]
[341363174,1730837437254,-500.00000072,0.00041095,14]
[341363175,1730837437264,-209.12780655,0.00041095,14]
[341363176,1730837437274,-502.8780655,0.00041095,14]
[341363177,1730837437284,-500.68364836,0.00041095,14]
[341363178,1730837437294,-377.37593798,0.00041095,7]
[341363179,1730837437304,-500.0,0.00041095,14]
[341363180,1730837437321,-407.55714481,0.00041095,14]
[341363181,1730837437332,-500.0,0.00041095,14]
[341363182,1730837437341,-500.0,0.00041095,14]
[341363183,1730837437351,-500.0,0.00041095,14]
[341363184,1730837437361,-500.0,0.00041095,14]
[341363185,1730837437370,-543.88667357,0.00041095,14]
[341363186,1730837437379,-500.0,0.00041095,14]
[341363187,1730837437388,-500.0,0.00041095,14]
[341363188,1730837437397,-500.0,0.00041095,14]
[341363189,1730837437407,-500.0,0.00041095,14]
[341363190,1730837437417,-500.0,0.00041095,14]
[341363191,1730837437426,-506.6857966,0.00041095,14]
[341363192,1730837437436,-500.0,0.00041095,14]
[341363193,1730837437445,-500.0,0.00041095,14]
[341363194,1730837437458,-500.0,0.00041095,14]
[341363195,1730837437467,-530.82041047,0.00041095,14]
[341363196,1730837437477,-500.0,0.00041095,14]
[341363197,1730837437487,-500.0,0.00041095,14]
[341363198,1730837437496,-141.67971183,0.00041095,14]
[341363218,1730837438880,-481.02111254,0.00040995,2]
[341363219,1730837438893,-18.97888746,0.00040995,2]
[341363220,1730837438902,-358.32028817,0.00041095,14]
[341363221,1730837438912,-500.0,0.00041095,14]
[341363222,1730837438921,-386.04626672,0.00041095,14]
[341363223,1730837438933,-113.95373328,0.00041095,14]
[341363225,1730837438943,-472.25212009,0.00041095,14]
[341363227,1730837438954,-57.56068641,0.00041095,14]
[341363229,1730837438966,-442.43931359,0.00041095,14]
[341363231,1730837438976,-3.4360981,0.00041095,14]
[341363233,1730837438987,-496.5639019,0.00041095,14]
[341363235,1730837438996,-500.0,0.00041095,14]
[341363237,1730837439006,-500.0,0.00041095,14]
[341363239,1730837439015,-500.0,0.00041095,14]
[341363241,1730837439024,-500.0,0.00041095,14]
[341363243,1730837439033,-502.88242263,0.00041095,14]
[341363245,1730837439044,-502.95140285,0.00041095,14]
[341363247,1730837439053,-500.0,0.00041095,14]
[341363249,1730837439062,-500.0,0.00041095,14]
[341363251,1730837439072,-500.0,0.00041095,14]
[341363254,1730837439091,-500.0,0.00041095,14]
[341363257,1730837439102,-500.0,0.00041095,14]
[341363259,1730837439112,-500.0,0.00041095,14]
[341363261,1730837439122,-500.0,0.00041095,14]
[341363263,1730837439132,-500.0,0.00041095,14]
[341363265,1730837439141,-500.0,0.00041095,14]
[341363267,1730837439151,-500.0,0.00041095,14]
[341363268,1730837439160,-500.0,0.00041095,14]
[341363270,1730837439170,-500.0,0.00041095,14]
[341363273,1730837439181,-532.10513746,0.00041095,14]
[341363275,1730837439191,-500.0,0.00041095,14]
[341363277,1730837439203,-500.0,0.00041095,14]
[341363279,1730837439213,-225.5931682,0.00041095,14]
[341363281,1730837439223,-500.0,0.00041095,14]
[341363283,1730837439233,-503.07961362,0.00041095,14]
[341363285,1730837439245,-500.0,0.00041095,14]
[341363287,1730837439256,-500.0,0.00041095,14]
[341363289,1730837439266,-500.0,0.00041095,14]
[341363292,1730837439276,-500.0,0.00041095,14]
[341363294,1730837439286,-500.0,0.00041095,14]
[341363296,1730837439295,-500.0,0.00041095,14]
[341363298,1730837439306,-500.0,0.00041095,14]
[341363300,1730837439316,-500.0,0.00041095,14]
[341363302,1730837439326,-510.59272326,0.00041095,14]
[341363304,1730837439336,-515.12281945,0.00041095,14]
[341363306,1730837439346,-500.0,0.00041095,14]
[341363308,1730837439357,-500.0,0.00041095,14]
[341363309,1730837439367,-500.0,0.00041095,14]
[341363310,1730837439376,-500.0,0.00041095,14]
[341363311,1730837439385,-500.0,0.00041095,14]
[341363312,1730837439395,-500.0,0.00041095,14]
[341363313,1730837439405,-500.0,0.00041095,14]
[341363314,1730837439415,-502.50738637,0.00041095,14]
[341363315,1730837439424,-500.0,0.00041095,14]
[341363316,1730837439434,-500.0,0.00041095,14]
[341363317,1730837439445,-500.0,0.00041095,14]
[341363318,1730837439461,-500.0,0.00041095,14]
[341363319,1730837439470,-506.05743233,0.00041095,14]
[341363320,1730837439480,-500.0,0.00041095,14]
[341363321,1730837439489,-500.0,0.00041095,14]
[341363322,1730837439500,-500.0,0.00041095,14]
[341363323,1730837439509,-507.54045314,0.00041095,14]
[341363324,1730837439519,-500.0,0.00041095,14]
[341363325,1730837439528,-500.0,0.00041095,14]
[341363326,1730837439538,-500.0,0.00041095,14]
[341363327,1730837439547,-500.0,0.00041095,14]
[341363328,1730837439557,-500.0,0.00041095,14]
[341363329,1730837439566,-542.67581799,0.00041095,14]
[341363330,1730837439576,-500.0,0.00041095,14]
[341363331,1730837439585,-500.0,0.00041095,14]
[341363332,1730837439596,-500.0,0.00041095,14]
[341363333,1730837439606,-501.59723135,0.00041095,14]
[341363334,1730837439615,-500.0,0.00041095,14]
[341363335,1730837439626,-500.0,0.00041095,14]
[341363336,1730837439635,-500.0,0.00041095,14]
[341363337,1730837439646,-504.3532632,0.00041095,14]
[341363338,1730837439657,-500.0,0.00041095,14]
[341363339,1730837439668,-500.0,0.00041095,14]
[341363340,1730837439679,-500.0,0.00041095,14]
[341363341,1730837439693,-500.0,0.00041095,14]
[341363343,1730837439705,-500.0,0.00041095,14]
[341363344,1730837439714,-500.0,0.00041095,14]
[341363345,1730837439724,-242.00513205,0.00041095,14]
[341363346,1730837439733,-634.16206078,0.00041095,14]
[341363347,1730837439743,-500.0,0.00041095,14]
[341363348,1730837439756,-506.85205939,0.00041095,14]
[341363349,1730837439767,-500.0,0.00041095,14]
[341363350,1730837439778,-500.0,0.00041095,14]
[341363351,1730837439788,-213.17731312,0.00041095,14]
[341363352,1730837439902,-500.0,0.00041095,14]
[341363354,1730837439912,-500.0,0.00041095,14]
[341363356,1730837439922,-500.0,0.00041095,14]
[341363358,1730837439931,-500.0,0.00041095,14]
[341363360,1730837439941,-500.0,0.00041095,14]
[341363362,1730837439952,-502.31574118,0.00041095,14]
[341363364,1730837439961,-474.45910877,0.00041095,14]
[341363366,1730837439970,-500.0,0.00041095,14]
[341363368,1730837439979,-500.0,0.00041095,14]
[341363370,1730837439989,-510.06583153,0.00041095,14]
[341363372,1730837439999,-154.13187896,0.00041095,14]
[341363374,1730837440008,-500.0,0.00041095,14]
[341363376,1730837440019,-500.0,0.00041095,14]
[341363378,1730837440029,-500.0,0.00041095,14]
[341363380,1730837440039,-500.0,0.00041095,14]
[341363382,1730837440049,-500.0,0.00041095,14]
[341363385,1730837440058,-502.58727398,0.00041095,14]
[341363388,1730837440068,-500.0,0.00041095,14]
[341363391,1730837440078,-500.0,0.00041095,14]
[341363393,1730837440087,-500.0,0.00041095,14]
[341363394,1730837440097,-519.49281084,0.00041095,14]
[341363395,1730837440107,-500.0,0.00041095,14]
[341363397,1730837440117,-500.0,0.00041095,14]
[341363399,1730837440126,-530.95037799,0.00041095,14]
[341363401,1730837440135,-252.41908798,0.00041095,14]
[341363402,1730837440145,-500.0,0.00041095,14]
[341363403,1730837440155,-500.0,0.00041095,14]
[341363404,1730837440164,-500.0,0.00041095,14]
[341363405,1730837440173,-500.0,0.00041095,14]
[341363406,1730837440183,-500.0,0.00041095,14]
[341363407,1730837440192,-500.0,0.00041095,14]
[341363408,1730837440202,-500.0,0.00041095,14]
[341363409,1730837440211,-500.0,0.00041095,14]
[341363410,1730837440221,-500.0,0.00041095,14]
[341363412,1730837440230,-500.0,0.00041095,14]
[341363414,1730837440240,-496.50353989,0.00041095,14]
[341363416,1730837440249,-500.0,0.00041095,14]
[341363418,1730837440260,-511.28033176,0.00041095,14]
[341363420,1730837440269,-500.0,0.00041095,14]
[341363422,1730837440279,-608.69904442,0.00041095,14]
[341363424,1730837440289,-500.0,0.00041095,14]
[341363426,1730837440299,-502.09937194,0.00041095,14]
[341363429,1730837440309,-500.0,0.00041095,14]
[341363432,1730837440319,-508.55059363,0.00041095,14]
[341363434,1730837440328,-500.0,0.00041095,14]
[341363436,1730837440337,-500.0,0.00041095,14]
[341363438,1730837440347,-500.0,0.00041095,14]
[341363440,1730837440357,-500.0,0.00041095,14]
[341363442,1730837440367,-364.51622917,0.00041095,14]
[341363444,1730837440377,-500.0,0.00041095,14]
[341363446,1730837440387,-500.0,0.00041095,14]
[341363448,1730837440397,-500.0,0.00041095,14]
[341363450,1730837440407,-500.0,0.00041095,14]
[341363452,1730837440417,-500.0,0.00041095,14]
[341363454,1730837440426,-500.0,0.00041095,14]
[341363456,1730837440436,-500.0,0.00041095,14]
[341363458,1730837440445,-500.0,0.00041095,14]
[341363461,1730837440457,-500.0,0.00041095,14]
[341363463,1730837440466,-500.0,0.00041095,14]
[341363465,1730837440476,-500.0,0.00041095,14]
[341363467,1730837440486,-500.0,0.00041095,14]
[341363469,1730837440496,-500.0,0.00041095,14]
[341363471,1730837440505,-500.0,0.00041095,14]
[341363473,1730837440515,-502.60737326,0.00041095,14]
[341363475,1730837440525,-500.0,0.00041095,14]
[341363477,1730837440535,-500.0,0.00041095,14]
[341363479,1730837440544,-500.0,0.00041095,14]
[341363481,1730837440554,-500.0,0.00041095,14]
[341363483,1730837440563,-568.01302933,0.00041095,14]
[341363485,1730837440573,-500.0,0.00041095,14]
[341363487,1730837440582,-600.26436724,0.00041095,14]
[341363489,1730837440591,-500.0,0.00041095,14]
[341363491,1730837440601,-500.0,0.00041095,14]
[341363493,1730837440610,-204.79,0.00041095,14]
[341363495,1730837440619,-500.0,0.00041095,14]
[341363497,1730837440629,-500.0,0.00041095,14]
[341363499,1730837440638,-500.0,0.00041095,14]
[341363501,1730837440648,-512.22658294,0.00041095,14]
[341363503,1730837440657,-207.87228731,0.00041095,14]
[341363505,1730837440666,-500.0,0.00041095,14]
[341363507,1730837440676,-503.6738448,0.00041095,14]
[341363509,1730837440685,-500.0,0.00041095,14]
[341363510,1730837440695,-500.0,0.00041095,14]
[341363512,1730837440705,-500.0,0.00041095,14]
[341363514,1730837440714,-500.0,0.00041095,14]
[341363516,1730837440724,-501.38327569,0.00041095,14]
[341363518,1730837440734,-500.0,0.00041095,14]
[341363520,1730837440743,-200.0,0.00041095,7]
[341363522,1730837440754,-500.0,0.00041095,14]
[341363524,1730837440765,-500.0,0.00041095,14]
[341363526,1730837440774,-500.0,0.00041095,14]
[341363528,1730837440784,-500.0,0.00041095,14]
[341363529,1730837440795,-500.0,0.00041095,14]
[341363530,1730837440804,-500.0,0.00041095,14]
[341363531,1730837440814,-500.0,0.00041095,14]
[341363532,1730837440824,-500.0,0.00041095,14]
[341363533,1730837440834,-500.0,0.00041095,14]
[341363534,1730837440845,-500.0,0.00041095,14]
[341363535,1730837440854,-500.0,0.00041095,14]
[341363536,1730837440864,-500.0,0.00041095,14]
[341363537,1730837440874,-500.0,0.00041095,14]
[341363538,1730837440884,-500.0,0.00041095,14]
[341363539,1730837440893,-500.0,0.00041095,14]
[341363540,1730837440902,-500.0,0.00041095,14]
[341363541,1730837440912,-500.0,0.00041095,14]
[341363542,1730837440922,-500.0,0.00041095,14]
[341363543,1730837440932,-500.0,0.00041095,14]
[341363544,1730837440941,-500.0,0.00041095,14]
[341363545,1730837440951,-500.0,0.00041095,14]
[341363546,1730837440961,-500.0,0.00041095,14]
[341363547,1730837440971,-500.0,0.00041095,14]
[341363548,1730837440980,-500.0,0.00041095,14]
[341363549,1730837440989,-500.0,0.00041095,14]
[341363550,1730837440999,-500.0,0.00041095,14]
[341363551,1730837441008,-500.0,0.00041095,14]
[341363552,1730837441018,-500.0,0.00041095,14]
[341363553,1730837441028,-511.48311671,0.00041095,14]
[341363554,1730837441038,-590.81175406,0.00041095,14]
[341363555,1730837441047,-500.0,0.00041095,14]
[341363556,1730837441056,-500.0,0.00041095,14]
[341363557,1730837441066,-500.0,0.00041095,14]
[341363558,1730837441075,-500.0,0.00041095,14]
[341363559,1730837441085,-1000.0,0.00041095,14]
[341363560,1730837441094,-500.0,0.00041095,14]
[341363561,1730837441103,-500.0,0.00041095,14]
[341363562,1730837441112,-500.0,0.00041095,14]
[341363563,1730837441121,-502.78466464,0.00041095,14]
[341363564,1730837441130,-576.04148373,0.00041095,14]
[341363565,1730837441140,-500.0,0.00041095,14]
[341363566,1730837441149,-500.0,0.00041095,14]
[341363567,1730837441158,-500.0,0.00041095,14]
[341363568,1730837441167,-500.0,0.00041095,14]
[341363569,1730837441177,-508.51772337,0.00041095,14]
[341363570,1730837441187,-500.0,0.00041095,14]
[341363571,1730837441196,-500.0,0.00041095,14]
[341363572,1730837441207,-500.0,0.00041095,14]
[341363573,1730837441216,-500.0,0.00041095,14]
[341363574,1730837441225,-500.0,0.00041095,14]
[341363575,1730837441235,-500.0,0.00041095,14]
[341363576,1730837441244,-500.0,0.00041095,14]
[341363577,1730837441253,-540.70490365,0.00041095,14]
[341363578,1730837441262,-500.0,0.00041095,14]
[341363579,1730837441271,-507.61999038,0.00041095,14]
[341363580,1730837441280,-500.0,0.00041095,14]
[341363581,1730837441290,-516.65337224,0.00041095,14]
[341363582,1730837441299,-500.0,0.00041095,14]
[341363583,1730837441309,-500.0,0.00041095,14]
[341363584,1730837441318,-500.0,0.00041095,14]
[341363585,1730837441327,-513.42,0.00041095,14]
[341363586,1730837441336,-513.42,0.00041095,14]
[341363587,1730837441346,-513.42,0.00041095,14]
[341363588,1730837441355,-500.0,0.00041095,14]
[341363589,1730837441364,-513.42,0.00041095,14]
[341363590,1730837441373,-513.42,0.00041095,14]
[341363591,1730837441382,-513.42,0.00041095,14]
[341363592,1730837441391,-513.42,0.00041095,14]
[341363593,1730837441400,-513.42,0.00041095,14]
[341363594,1730837441410,-514.8992849,0.00041095,14]
[341363595,1730837441419,-503.41998529,0.00041095,14]
[341363597,1730837441429,-500.0,0.00041095,14]
[341363599,1730837441438,-500.0,0.00041095,14]
[341363600,1730837441447,-500.0,0.00041095,14]
[341363601,1730837441461,-500.0,0.00041095,14]
[341363603,1730837441470,-500.0,0.00041095,14]
[341363605,1730837441478,-530.98239763,0.00041095,14]
[341363608,1730837441521,-107.51221037,0.00041095,14]
[341363609,1730837441531,-500.0,0.00041095,14]
[341363610,1730837441540,-500.0,0.00041095,14]
[341363611,1730837441549,-500.0,0.00041095,14]
[341363612,1730837441558,-500.0,0.00041095,14]
[341363613,1730837441568,-500.0,0.00041095,14]
[341363614,1730837441577,-500.0,0.00041095,14]
[341363615,1730837441586,-500.0,0.00041095,14]
[341363616,1730837441596,-500.0,0.00041095,14]
[341363617,1730837441605,-2758.59,0.00041095,14]
[341363618,1730837441615,-2758.59,0.00041095,14]
[341363619,1730837441624,-2758.59,0.00041095,14]
[341363620,1730837441633,-1488.51778963,0.00041095,14]
[341363621,1730837441646,-1270.07221037,0.00041095,14]
[341363622,1730837441655,-2758.59,0.00041095,14]
[341363623,1730837441665,-2758.59,0.00041095,14]
[341363624,1730837441675,-2758.59,0.00041095,14]
[341363625,1730837441685,-2758.59,0.00041095,14]
[341363626,1730837441694,-2758.59,0.00041095,14]
[341363627,1730837441707,-2758.59,0.00041095,14]
[341363628,1730837441716,-2758.59,0.00041095,14]
[341363629,1730837441726,-2758.59,0.00041095,14]
[341363630,1730837441735,-2758.59,0.00041095,14]
[341363631,1730837441744,-500.0,0.00041095,14]
[341363632,1730837441755,-2758.59,0.00041095,14]
[341363633,1730837441766,-500.0,0.00041095,14]
[341363634,1730837441776,-1808.54,0.00041095,14]
[341363635,1730837441786,-500.0,0.00041095,14]
[341363636,1730837441796,-1808.54,0.00041095,14]
[341363637,1730837441807,-1808.54,0.00041095,14]
[341363638,1730837441816,-1808.54,0.00041095,14]
[341363639,1730837441827,-1808.54,0.00041095,14]
[341363640,1730837441838,-1808.54,0.00041095,14]
[341363641,1730837441848,-1808.54,0.00041095,14]
[341363642,1730837441858,-1808.54,0.00041095,14]
[341363643,1730837441868,-500.0,0.00041095,14]
[341363644,1730837441878,-500.0,0.00041095,14]
[341363645,1730837441888,-500.0,0.00041095,14]
[341363646,1730837441898,-500.0,0.00041095,14]
[341363647,1730837441909,-500.0,0.00041095,14]
[341363648,1730837441919,-513.63579027,0.00041095,14]
[341363649,1730837441930,-500.0,0.00041095,14]
[341363650,1730837441939,-500.0,0.00041095,14]
[341363655,1730837442015,-500.0,0.00041095,14]
[341363656,1730837442029,-500.0,0.00041095,14]
[341363657,1730837442040,-521.26500344,0.00041095,14]
[341363658,1730837442051,-500.0,0.00041095,14]
[341363660,1730837442061,-514.37147648,0.00041095,14]
[341363662,1730837442070,-551.31167863,0.00041095,14]
[341363664,1730837442079,-500.0,0.00041095,14]
[341363665,1730837442088,-127.16934893,0.00041095,14]
[341363666,1730837442101,-372.83065107,0.00041095,14]
[341363667,1730837442110,-14.7511763,0.00041095,7]
[341363668,1730837442163,-485.2488237,0.00041095,7]
[341363669,1730837442172,-500.0,0.00041095,7]
[341363670,1730837442181,-48.86209867,0.00041095,7]
[341363671,1730837442194,-451.13790133,0.00041095,7]
[341363673,1730837442206,-500.0,0.00041095,14]
[341363675,1730837442216,-500.0,0.00041095,14]
[341363677,1730837442225,-500.0,0.00041095,7]
[341363678,1730837442234,-500.0,0.00041095,7]
[341363679,1730837442243,-500.0,0.00041095,14]
[341363680,1730837442253,-500.0,0.00041095,7]
[341363681,1730837442263,-483.41,0.00041095,7]
[341363682,1730837442272,-500.0,0.00041095,14]
[341363683,1730837442281,-500.0,0.00041095,14]
[341363684,1730837442291,-500.0,0.00041095,14]
[341363685,1730837442301,-500.0,0.00041095,14]
[341363686,1730837442310,-500.0,0.00041095,14]
[341363687,1730837442321,-500.82577978,0.00041095,14]
[341363688,1730837442330,-500.0,0.00041095,14]
[341363689,1730837442341,-500.0,0.00041095,14]
[341363690,1730837442351,-500.0,0.00041095,14]
[341363691,1730837442361,-501.4700491,0.00041095,14]
[341363692,1730837442371,-500.0,0.00041095,14]
[341363693,1730837442381,-613.34058295,0.00041095,14]
[341363694,1730837442390,-576.16786594,0.00041095,14]
[341363695,1730837442399,-500.0,0.00041095,14]
[341363696,1730837442408,-507.91930644,0.00041095,14]
[341363697,1730837442418,-500.0,0.00041095,14]
[341363698,1730837442428,-500.0,0.00041095,14]
[341363699,1730837442437,-500.0,0.00041095,14]
[341363700,1730837442447,-500.0,0.00041095,14]
[341363701,1730837442458,-500.0,0.00041095,14]
[341363702,1730837442468,-500.0,0.00041095,14]
[341363703,1730837442477,-500.0,0.00041095,14]
[341363704,1730837442487,-500.0,0.00041095,14]
[341363705,1730837442497,-500.0,0.00041095,14]
[341363706,1730837442506,-500.0,0.00041095,14]
[341363707,1730837442515,-500.0,0.00041095,14]
[341363708,1730837442524,-500.0,0.00041095,14]
[341363709,1730837442533,-500.0,0.00041095,14]
[341363710,1730837442542,-500.0,0.00041095,14]
[341363711,1730837442551,-502.12842486,0.00041095,14]
[341363712,1730837442560,-500.0,0.00041095,14]
[341363713,1730837442569,-500.0,0.00041095,14]
[341363714,1730837442578,-500.0,0.00041095,14]
[341363715,1730837442587,-500.0,0.00041095,14]
[341363716,1730837442597,-500.0,0.00041095,14]
[341363717,1730837442606,-500.0,0.00041095,14]
[341363718,1730837442615,-500.0,0.00041095,14]
[341363719,1730837442625,-500.0,0.00041095,14]
[341363720,1730837442633,-500.0,0.00041095,14]
[341363721,1730837442643,-501.85095613,0.00041095,14]
[341363722,1730837442651,-500.0,0.00041095,14]
[341363723,1730837442660,-500.0,0.00041095,14]
[341363724,1730837442670,-500.0,0.00041095,14]
[341363725,1730837442679,-500.0,0.00041095,14]
[341363726,1730837442688,-500.0,0.00041095,14]
[341363727,1730837442697,-500.0,0.00041095,14]
[341363728,1730837442712,-500.0,0.00041095,14]
[341363729,1730837442721,-177.504509,0.00041095,14]
[341363730,1730837442730,-363.79559982,0.00041095,14]
[341363731,1730837442740,-500.0,0.00041095,14]
[341363732,1730837442751,-500.0,0.00041095,14]
[341363733,1730837442763,-500.0,0.00041095,14]
[341363734,1730837442775,-500.0,0.00041095,14]
[341363735,1730837442785,-500.0,0.00041095,14]
[341363736,1730837442795,-500.0,0.00041095,14]
[341363737,1730837442804,-500.0,0.00041095,14]
[341363738,1730837442813,-500.0,0.00041095,14]
[341363739,1730837442823,-500.0,0.00041095,14]
[341363740,1730837442833,-502.14,0.00041095,14]
[341363741,1730837442844,-500.0,0.00041095,14]
[341363742,1730837442853,-527.14265424,0.00041095,14]
[341363743,1730837442863,-500.0,0.00041095,14]
[341363744,1730837442872,-500.0,0.00041095,14]
[341363745,1730837442881,-500.0,0.00041095,14]
[341363746,1730837442893,-500.0,0.00041095,14]
[341363747,1730837442906,-500.0,0.00041095,14]
[341363748,1730837442915,-500.0,0.00041095,14]
[341363749,1730837442924,-500.0,0.00041095,14]
[341363750,1730837442933,-500.0,0.00041095,14]
[341363751,1730837442943,-500.0,0.00041095,14]
[341363752,1730837442957,-500.0,0.00041095,14]
[341363753,1730837442967,-500.0,0.00041095,14]
[341363754,1730837442976,-500.0,0.00041095,14]
[341363755,1730837442985,-500.0,0.00041095,14]
[341363756,1730837442995,-500.0,0.00041095,14]
[341363757,1730837443004,-500.0,0.00041095,14]
[341363758,1730837443013,-316.29487318,0.00041095,14]
[341363761,1730837443023,-500.0,0.00041095,14]